[Event "SS Manhem Chess Week GM and IM tournaments 2018"]
[Site "Molnlycke kulturhus, Biblioteksgatan 2, Molnlycke, Sweden"]
[Date "2018.08.12"]
[Round "3.6"]
[White "Hobber, Anders"]
[Black "Vypkhaniuk, Ihor"]
[Result "1/2-1/2"]
[TimeControl "90 minutes for 40 moves + 30 minutes for the rest of the game + 30 seconds per move from move one."]
[WhiteTitle "FM"]
[BlackTitle "FM"]
[WhiteFideId "1505424"]
[BlackFideId "14112256"]
[WhiteElo "2314"]
[BlackElo "2357"]

1. d4 {[%clk 01:30:47]} {[%emt 00:00:12]} Nf6 {[%clk 01:30:52]} {[%emt
00:00:09]} 2. Bf4 {[%clk 01:31:05]} {[%emt 00:00:12]} g6 {[%clk 01:31:12]}
{[%emt 00:00:10]} 3. Nc3 {[%clk 01:31:15]} {[%emt 00:00:20]} d6 {[%clk
01:29:57]} {[%emt 00:01:45]} 4. e4 {[%clk 01:30:41]} {[%emt 00:01:03]} c6
{[%clk 01:29:10]} {[%emt 00:01:18]} 5. Nf3 {[%clk 01:18:45]} {[%emt 00:12:25]}
Bg7 {[%clk 01:19:45]} {[%emt 00:09:55]} 6. Qd2 {[%clk 01:15:53]} {[%emt
00:03:21]} Bg4 {[%clk 01:15:53]} {[%emt 00:04:23]} 7. Be2 {[%clk 01:03:56]}
{[%emt 00:12:27]} Nbd7 {[%clk 01:09:06]} {[%emt 00:07:17]} 8. O-O {[%clk
00:57:11]} {[%emt 00:07:14]} O-O {[%clk 01:06:17]} {[%emt 00:03:20]} 9. Rad1
{[%clk 00:50:47]} {[%emt 00:06:54]} Qa5 {[%clk 01:01:40]} {[%emt 00:05:07]} 10.
h3 {[%clk 00:44:23]} {[%emt 00:06:54]} Bxf3 {[%clk 01:01:49]} {[%emt 00:00:20]}
11. Bxf3 {[%clk 00:44:48]} {[%emt 00:00:05]} e5 {[%clk 01:00:50]} {[%emt
00:01:29]} 12. Be3 {[%clk 00:41:11]} {[%emt 00:04:07]} exd4 {[%clk 00:57:29]}
{[%emt 00:03:52]} 13. Bxd4 {[%clk 00:40:21]} {[%emt 00:01:20]} Rfe8 {[%clk
00:51:37]} {[%emt 00:06:21]} 14. Rfe1 {[%clk 00:35:05]} {[%emt 00:05:45]} Rad8
{[%clk 00:47:06]} {[%emt 00:05:02]} 15. a3 {[%clk 00:29:25]} {[%emt 00:06:10]}
Qc7 {[%clk 00:45:12]} {[%emt 00:02:24]} 16. Be3 {[%clk 00:28:25]} {[%emt
00:01:30]} Nb6 {[%clk 00:39:32]} {[%emt 00:06:11]} 17. b3 {[%clk 00:28:24]}
{[%emt 00:00:30]} Nfd7 {[%clk 00:38:42]} {[%emt 00:01:21]} 18. Bg5 {[%clk
00:24:34]} {[%emt 00:04:19]} Bf6 {[%clk 00:36:22]} {[%emt 00:02:51]} 19. Bxf6
{[%clk 00:24:38]} {[%emt 00:00:27]} Nxf6 {[%clk 00:36:46]} {[%emt 00:00:06]} 20.
g3 {[%clk 00:24:11]} {[%emt 00:00:56]} Qe7 {[%clk 00:34:03]} {[%emt 00:03:14]}
21. Bg2 {[%clk 00:22:23]} {[%emt 00:02:17]} Qe5 {[%clk 00:31:44]} {[%emt
00:02:49]} 22. Re3 {[%clk 00:21:23]} {[%emt 00:01:30]} 1/2-1/2

[Event "SS Manhem Chess Week GM and IM tournaments 2018"]
[Site "Molnlycke kulturhus, Biblioteksgatan 2, Molnlycke, Sweden"]
[Date "2018.08.12"]
[Round "3.7"]
[White "Antonsen, Mikkel"]
[Black "Storme, Isak"]
[Result "1/2-1/2"]
[TimeControl "90 minutes for 40 moves + 30 minutes for the rest of the game + 30 seconds per move from move one."]
[WhiteTitle "IM"]
[BlackTitle "FM"]
[WhiteFideId "1401378"]
[BlackFideId "1728113"]
[WhiteElo "2444"]
[BlackElo "2279"]

1. d4 {[%clk 01:30:58]} {[%emt 00:00:01]} Nf6 {[%clk 01:30:53]} {[%emt
00:00:08]} 2. c4 {[%clk 01:31:26]} {[%emt 00:00:02]} e6 {[%clk 01:31:16]}
{[%emt 00:00:06]} 3. Nc3 {[%clk 01:31:52]} {[%emt 00:00:04]} d5 {[%clk
01:31:41]} {[%emt 00:00:05]} 4. cxd5 {[%clk 01:32:09]} {[%emt 00:00:13]} Nxd5
{[%clk 01:32:03]} {[%emt 00:00:08]} 5. e4 {[%clk 01:32:29]} {[%emt 00:00:11]}
Nxc3 {[%clk 01:32:25]} {[%emt 00:00:07]} 6. bxc3 {[%clk 01:32:56]} {[%emt
00:00:03]} c5 {[%clk 01:32:48]} {[%emt 00:00:07]} 7. Nf3 {[%clk 01:33:22]}
{[%emt 00:00:04]} cxd4 {[%clk 01:33:13]} {[%emt 00:00:05]} 8. cxd4 {[%clk
01:33:50]} {[%emt 00:00:02]} Bb4+ {[%clk 01:33:35]} {[%emt 00:00:08]} 9. Bd2
{[%clk 01:34:18]} {[%emt 00:00:03]} Bxd2+ {[%clk 01:33:57]} {[%emt 00:00:08]}
10. Qxd2 {[%clk 01:34:44]} {[%emt 00:00:03]} O-O {[%clk 01:34:14]} {[%emt
00:00:12]} 11. Be2 {[%clk 01:34:33]} {[%emt 00:00:42]} b6 {[%clk 01:32:53]}
{[%emt 00:01:51]} 12. O-O {[%clk 01:34:51]} {[%emt 00:00:12]} Bb7 {[%clk
01:33:14]} {[%emt 00:00:08]} 13. Qe3 {[%clk 01:35:16]} {[%emt 00:00:06]} Nd7
{[%clk 01:32:12]} {[%emt 00:01:31]} 14. Rfd1 {[%clk 01:34:52]} {[%emt
00:00:54]} Qe7 {[%clk 01:27:28]} {[%emt 00:05:14]} 15. a4 {[%clk 01:34:48]}
{[%emt 00:00:35]} a5 {[%clk 01:27:13]} {[%emt 00:00:44]} 16. Bb5 {[%clk
01:30:41]} {[%emt 00:04:38]} Nf6 {[%clk 01:26:21]} {[%emt 00:01:21]} 17. Nd2
{[%clk 01:31:09]} {[%emt 00:00:03]} Rac8 {[%clk 01:15:50]} {[%emt 00:11:00]} 18.
f3 {[%clk 01:31:28]} {[%emt 00:00:12]} Bc6 {[%clk 01:08:34]} {[%emt 00:07:45]}
19. Bf1 {[%clk 01:28:11]} {[%emt 00:03:47]} Rfd8 {[%clk 01:03:05]} {[%emt
00:05:59]} 20. Nc4 {[%clk 01:28:23]} {[%emt 00:00:19]} Bxa4 {[%clk 01:01:34]}
{[%emt 00:02:01]} 21. Rdb1 {[%clk 01:24:41]} {[%emt 00:04:12]} b5 {[%clk
00:58:08]} {[%emt 00:03:56]} 22. Nb6 {[%clk 01:25:08]} {[%emt 00:00:03]} Rb8
{[%clk 00:52:48]} {[%emt 00:05:49]} 23. Nxa4 {[%clk 01:25:30]} {[%emt
00:00:09]} bxa4 {[%clk 00:53:12]} {[%emt 00:00:06]} 24. Rxb8 {[%clk 01:25:53]}
{[%emt 00:00:07]} Rxb8 {[%clk 00:53:36]} {[%emt 00:00:05]} 25. Rxa4 {[%clk
01:26:20]} {[%emt 00:00:04]} Qd8 {[%clk 00:50:40]} {[%emt 00:03:25]} 26. Qc3
{[%clk 01:25:30]} {[%emt 00:01:21]} Ra8 {[%clk 00:47:47]} {[%emt 00:03:22]} 27.
Bb5 {[%clk 01:21:41]} {[%emt 00:04:19]} h6 {[%clk 00:43:47]} {[%emt 00:04:31]}
28. Rc4 {[%clk 01:19:51]} {[%emt 00:02:21]} Qb6 {[%clk 00:42:20]} {[%emt
00:01:56]} 29. Rc8+ {[%clk 01:19:50]} {[%emt 00:00:31]} Rxc8 {[%clk 00:42:31]}
{[%emt 00:00:20]} 30. Qxc8+ {[%clk 01:20:14]} {[%emt 00:00:06]} Kh7 {[%clk
00:42:33]} {[%emt 00:00:27]} 31. Qc5 {[%clk 01:20:39]} {[%emt 00:00:05]} Qb7
{[%clk 00:36:10]} {[%emt 00:06:53]} 32. Bf1 {[%clk 00:57:00]} {[%emt 00:24:10]}
a4 {[%clk 00:32:40]} {[%emt 00:04:00]} 33. e5 {[%clk 00:54:40]} {[%emt
00:02:50]} Nd5 {[%clk 00:31:46]} {[%emt 00:01:23]} 34. Qc2+ {[%clk 00:55:05]}
{[%emt 00:00:05]} g6 {[%clk 00:32:08]} {[%emt 00:00:09]} 35. Qxa4 {[%clk
00:55:33]} {[%emt 00:00:03]} Qb2 {[%clk 00:30:32]} {[%emt 00:02:05]} 36. Qd1
{[%clk 00:49:12]} {[%emt 00:06:51]} Ne3 {[%clk 00:29:01]} {[%emt 00:02:01]} 37.
Qd3 {[%clk 00:49:39]} {[%emt 00:00:03]} Nf5 {[%clk 00:26:29]} {[%emt 00:03:01]}
38. d5 {[%clk 00:49:41]} {[%emt 00:00:29]} Qxe5 {[%clk 00:26:08]} {[%emt
00:00:50]} 39. dxe6 {[%clk 00:50:07]} {[%emt 00:00:05]} Qxe6 {[%clk 00:26:31]}
{[%emt 00:00:07]} 40. g3 {[%clk 00:49:49]} {[%emt 00:00:48]} Qb6+ {[%clk
00:24:43]} {[%emt 00:02:18]} 41. Kh1 {[%clk 00:48:52]} {[%emt 00:01:27]} Qf2
{[%clk 00:21:32]} {[%emt 00:03:41]} 42. Qe2 {[%clk 00:48:32]} {[%emt 00:00:51]}
Qd4 {[%clk 00:19:05]} {[%emt 00:02:55]} 43. Qc4 {[%clk 00:48:39]} {[%emt
00:00:25]} Qf6 {[%clk 00:17:17]} {[%emt 00:02:17]} 44. Qd3 {[%clk 00:47:56]}
{[%emt 00:01:14]} h5 {[%clk 00:14:53]} {[%emt 00:02:54]} 45. Bh3 {[%clk
00:46:48]} {[%emt 00:01:38]} Nd4 {[%clk 00:13:22]} {[%emt 00:01:59]} 46. f4
{[%clk 00:45:32]} {[%emt 00:01:48]} Qc6+ {[%clk 00:13:29]} {[%emt 00:00:21]} 47.
Bg2 {[%clk 00:45:49]} {[%emt 00:00:14]} Qc1+ {[%clk 00:13:44]} {[%emt
00:00:15]} 48. Qf1 {[%clk 00:46:02]} {[%emt 00:00:17]} Qd2 {[%clk 00:12:20]}
{[%emt 00:01:53]} 49. Be4 {[%clk 00:45:23]} {[%emt 00:01:10]} Qe3 {[%clk
00:11:17]} {[%emt 00:01:32]} 50. Qd3 {[%clk 00:38:16]} {[%emt 00:07:37]} Qf2
{[%clk 00:10:27]} {[%emt 00:01:19]} 51. Qd1 {[%clk 00:35:17]} {[%emt 00:03:30]}
Ne2 {[%clk 00:09:00]} {[%emt 00:01:57]} 52. f5 {[%clk 00:33:46]} {[%emt
00:02:02]} g5 {[%clk 00:01:57]} {[%emt 00:07:32]} 53. Bg2 {[%clk 00:33:44]}
{[%emt 00:00:32]} h4 {[%clk 00:20:44]} {[%emt 00:11:44]} 54. gxh4 {[%clk
01:03:59]} {[%emt 00:00:15]} gxh4 {[%clk 00:18:41]} {[%emt 00:02:34]} 55. f6
{[%clk 01:03:17]} {[%emt 00:01:12]} Kg6 {[%clk 00:16:18]} {[%emt 00:02:51]} 56.
Be4+ {[%clk 01:02:46]} {[%emt 00:01:01]} Kxf6 {[%clk 00:16:17]} {[%emt
00:00:32]} 57. Qd8+ {[%clk 01:02:25]} {[%emt 00:00:50]} Ke5 {[%clk 00:13:59]}
{[%emt 00:02:47]} 58. Qe7+ {[%clk 01:02:00]} {[%emt 00:00:57]} Kf4 {[%clk
00:14:22]} {[%emt 00:00:07]} 59. Qxf7+ {[%clk 01:02:04]} {[%emt 00:00:27]} Ke3
{[%clk 00:14:39]} {[%emt 00:00:13]} 60. Qxf2+ {[%clk 01:01:17]} {[%emt
00:01:17]} Kxf2 {[%clk 00:15:01]} {[%emt 00:00:07]} 61. Bd3 {[%clk 01:00:27]}
{[%emt 00:01:21]} Nf4 {[%clk 00:14:41]} {[%emt 00:00:50]} 62. Ba6 {[%clk
00:59:45]} {[%emt 00:01:13]} Nh5 {[%clk 00:12:44]} {[%emt 00:02:26]} 63. Bb5
{[%clk 00:59:33]} {[%emt 00:00:43]} Ng3+ {[%clk 00:12:52]} {[%emt 00:00:22]} 64.
hxg3 {[%clk 00:59:57]} {[%emt 00:00:07]} hxg3 {[%clk 00:13:17]} {[%emt
00:00:05]} 65. Bf1 {[%clk 01:00:06]} {[%emt 00:00:20]} Kxf1 {[%clk 00:13:42]}
{[%emt 00:00:06]} 1/2-1/2

[Event "SS Manhem Chess Week GM and IM tournaments 2018"]
[Site "Molnlycke kulturhus, Biblioteksgatan 2, Molnlycke, Sweden"]
[Date "2018.08.12"]
[Round "3.8"]
[White "Kucuksari, Kaan"]
[Black "Nedilko, Vasily"]
[Result "1-0"]
[TimeControl "90 minutes for 40 moves + 30 minutes for the rest of the game + 30 seconds per move from move one."]
[WhiteTitle "FM"]
[BlackTitle "IM"]
[WhiteFideId "6380166"]
[BlackFideId "14101459"]
[WhiteElo "2329"]
[BlackElo "2369"]

1. d4 {[%clk 01:30:56]} Nf6 {[%clk 01:30:53]} {[%emt 00:00:07]} 2. Nf3 {[%clk
01:31:19]} {[%emt 00:00:07]} g6 {[%clk 01:31:18]} {[%emt 00:00:06]} 3. c4
{[%clk 01:31:27]} {[%emt 00:00:22]} Bg7 {[%clk 01:31:38]} {[%emt 00:00:10]} 4.
g3 {[%clk 01:31:53]} {[%emt 00:00:05]} c5 {[%clk 01:29:43]} {[%emt 00:02:24]} 5.
d5 {[%clk 01:31:35]} {[%emt 00:00:48]} b5 {[%clk 01:29:47]} {[%emt 00:00:26]} 6.
cxb5 {[%clk 01:31:59]} {[%emt 00:00:06]} Qa5+ {[%clk 01:28:17]} {[%emt
00:01:59]} 7. Nc3 {[%clk 01:26:51]} {[%emt 00:05:38]} Ne4 {[%clk 01:16:05]}
{[%emt 00:12:42]} 8. Bd2 {[%clk 01:27:00]} {[%emt 00:00:21]} Nxc3 {[%clk
01:15:49]} {[%emt 00:00:46]} 9. Qc1 {[%clk 01:23:58]} {[%emt 00:03:33]} Qxb5
{[%clk 01:03:29]} {[%emt 00:12:50]} 10. Bxc3 {[%clk 01:24:18]} {[%emt
00:00:09]} O-O {[%clk 01:03:41]} {[%emt 00:00:19]} 11. h4 {[%clk 01:23:28]}
{[%emt 00:01:20]} Bxc3+ {[%clk 00:56:48]} {[%emt 00:07:23]} 12. bxc3 {[%clk
01:23:39]} {[%emt 00:00:19]} Qc4 {[%clk 00:57:10]} {[%emt 00:00:08]} 13. h5
{[%clk 01:09:48]} {[%emt 00:14:21]} d6 {[%clk 00:53:50]} {[%emt 00:03:50]} 14.
Rh4 {[%clk 00:56:10]} {[%emt 00:14:07]} Qxd5 {[%clk 00:52:26]} {[%emt
00:01:54]} 15. Qh6 {[%clk 00:54:41]} {[%emt 00:01:59]} Qf5 {[%clk 00:39:11]}
{[%emt 00:13:46]} 16. Ng5 {[%clk 00:54:38]} {[%emt 00:00:33]} gxh5 {[%clk
00:39:35]} {[%emt 00:00:06]} 17. Bg2 {[%emt 00:01:42]} 1-0

[Event "SS Manhem Chess Week GM and IM tournaments 2018"]
[Site "Molnlycke kulturhus, Biblioteksgatan 2, Molnlycke, Sweden"]
[Date "2018.08.12"]
[Round "3.9"]
[White "Rydstrom, Tom"]
[Black "Mikalsen, Erlend"]
[Result "0-1"]
[TimeControl "90 minutes for 40 moves + 30 minutes for the rest of the game + 30 seconds per move from move one."]
[WhiteTitle "FM"]
[BlackTitle "FM"]
[WhiteFideId "1714830"]
[BlackFideId "1507338"]
[WhiteElo "2316"]
[BlackElo "2289"]

1. e4 {[%clk 01:30:58]} c5 {[%clk 01:30:44]} {[%emt 00:00:16]} 2. Nf3 {[%clk
01:31:24]} {[%emt 00:00:05]} Nc6 {[%clk 01:31:04]} {[%emt 00:00:10]} 3. d4
{[%clk 01:31:19]} {[%emt 00:00:35]} cxd4 {[%clk 01:31:29]} {[%emt 00:00:04]} 4.
Nxd4 {[%clk 01:31:47]} {[%emt 00:00:03]} g6 {[%clk 01:31:43]} {[%emt 00:00:16]}
5. Be3 {[%clk 01:32:06]} {[%emt 00:00:11]} Bg7 {[%clk 01:32:05]} {[%emt
00:00:07]} 6. Nc3 {[%clk 01:32:05]} {[%emt 00:00:32]} Nf6 {[%clk 01:32:10]}
{[%emt 00:00:25]} 7. Bc4 {[%clk 01:32:29]} {[%emt 00:00:06]} O-O {[%clk
01:32:31]} {[%emt 00:00:09]} 8. Bb3 {[%clk 01:32:56]} {[%emt 00:00:03]} a5
{[%clk 01:32:52]} {[%emt 00:00:08]} 9. a4 {[%clk 01:27:22]} {[%emt 00:06:05]}
Ng4 {[%clk 01:32:17]} {[%emt 00:01:03]} 10. Qxg4 {[%clk 01:27:30]} {[%emt
00:00:22]} Nxd4 {[%clk 01:32:42]} {[%emt 00:00:05]} 11. Qd1 {[%clk 01:27:50]}
{[%emt 00:00:10]} Nxb3 {[%clk 01:32:09]} {[%emt 00:01:04]} 12. cxb3 {[%emt
00:00:12]} d6 {[%clk 01:28:54]} {[%emt 00:03:34]} 13. Qd2 {[%clk 01:27:18]}
{[%emt 00:01:31]} Be6 {[%clk 01:24:37]} {[%emt 00:04:46]} 14. Nd5 {[%clk
01:26:42]} {[%emt 00:01:06]} Bxd5 {[%clk 01:23:30]} {[%emt 00:01:38]} 15. exd5
{[%clk 01:27:02]} {[%emt 00:00:11]} Qd7 {[%clk 01:22:52]} {[%emt 00:01:07]} 16.
O-O {[%clk 01:26:24]} {[%emt 00:01:06]} b5 {[%clk 01:22:20]} {[%emt 00:01:05]}
17. Rfc1 {[%clk 01:24:11]} {[%emt 00:02:42]} Rfb8 {[%clk 01:20:16]} {[%emt
00:02:34]} 18. h3 {[%clk 01:14:35]} {[%emt 00:10:06]} Rb7 {[%clk 01:15:46]}
{[%emt 00:05:00]} 19. Rc6 {[%clk 01:12:33]} {[%emt 00:02:32]} h5 {[%clk
01:11:47]} {[%emt 00:04:28]} 20. Bb6 {[%clk 01:05:46]} {[%emt 00:07:17]} Ra6
{[%clk 01:06:44]} {[%emt 00:05:34]} 21. Bxa5 {[%clk 01:04:34]} {[%emt
00:01:42]} Rxc6 {[%clk 01:06:52]} {[%emt 00:00:22]} 22. dxc6 {[%clk 01:05:03]}
{[%emt 00:00:02]} Qxc6 {[%clk 01:07:16]} {[%emt 00:00:06]} 23. Bc3 {[%clk
01:01:30]} {[%emt 00:04:03]} e5 {[%clk 00:58:32]} {[%emt 00:09:13]} 24. a5
{[%clk 01:00:27]} {[%emt 00:01:33]} d5 {[%clk 00:58:27]} {[%emt 00:00:35]} 25.
Bb4 {[%clk 00:59:24]} {[%emt 00:01:33]} d4 {[%clk 00:55:24]} {[%emt 00:03:33]}
26. Rc1 {[%clk 00:58:46]} {[%emt 00:01:08]} Qd5 {[%clk 00:50:31]} {[%emt
00:05:23]} 27. Qe2 {[%clk 00:29:55]} {[%emt 00:29:21]} Kh7 {[%clk 00:37:59]}
{[%emt 00:13:02]} 28. Rc5 {[%clk 00:21:07]} {[%emt 00:09:19]} Qd7 {[%clk
00:36:10]} {[%emt 00:02:19]} 29. Qf3 {[%clk 00:17:11]} {[%emt 00:04:26]} f5
{[%clk 00:30:13]} {[%emt 00:06:27]} 30. Qd5 {[%clk 00:13:31]} {[%emt 00:04:11]}
Bf8 {[%clk 00:25:07]} {[%emt 00:05:37]} 31. a6 {[%clk 00:13:54]} {[%emt
00:00:07]} Ra7 {[%clk 00:25:29]} {[%emt 00:00:07]} 32. Qxd7+ {[%clk 00:12:36]}
{[%emt 00:01:49]} Rxd7 {[%clk 00:25:55]} {[%emt 00:00:04]} 33. Rxb5 {[%clk
00:13:03]} {[%emt 00:00:03]} Bxb4 {[%clk 00:24:45]} {[%emt 00:01:40]} 34. Rxb4
{[%clk 00:13:31]} {[%emt 00:00:01]} d3 {[%clk 00:24:37]} {[%emt 00:00:38]} 35.
Rb7 {[%clk 00:13:53]} {[%emt 00:00:08]} Rxb7 {[%clk 00:24:45]} {[%emt
00:00:23]} 36. axb7 {[%clk 00:14:21]} {[%emt 00:00:01]} d2 {[%clk 00:25:11]}
{[%emt 00:00:04]} 37. b8=Q {[%clk 00:14:42]} {[%emt 00:00:09]} d1=Q+ {[%clk
00:25:37]} {[%emt 00:00:04]} 38. Kh2 {[%clk 00:15:08]} {[%emt 00:00:04]} Qd4
{[%clk 00:25:50]} {[%emt 00:00:17]} 39. Qc7+ {[%clk 00:13:51]} {[%emt
00:01:47]} Kh8 {[%clk 00:25:17]} {[%emt 00:01:03]} 40. Qc3 {[%clk 00:14:07]}
{[%emt 00:00:14]} Qxf2 {[%clk 00:24:43]} {[%emt 00:01:04]} 41. Qxe5+ {[%clk
00:14:17]} {[%emt 00:00:21]} Kh7 {[%clk 00:25:01]} {[%emt 00:00:12]} 42. b4
{[%clk 00:14:20]} {[%emt 00:00:27]} f4 {[%clk 00:25:08]} {[%emt 00:00:22]} 43.
b5 {[%clk 00:11:49]} {[%emt 00:03:01]} Kh6 {[%clk 00:16:56]} {[%emt 00:08:43]}
44. b4 {[%clk 00:08:18]} {[%emt 00:04:01]} Qd2 {[%clk 00:15:17]} {[%emt
00:02:08]} 45. Qe7 {[%clk 00:05:24]} {[%emt 00:03:22]} Qf2 {[%clk 00:13:45]}
{[%emt 00:02:04]} 46. Qe4 {[%clk 00:26:38]} {[%emt 00:09:12]} g5 {[%clk
00:42:24]} {[%emt 00:01:55]} 47. Qe6+ {[%clk 00:26:11]} {[%emt 00:00:57]} Kg7
{[%clk 00:42:49]} {[%emt 00:00:05]} 48. b6 {[%clk 00:25:53]} {[%emt 00:00:48]}
f3 {[%clk 00:37:59]} {[%emt 00:05:19]} 49. Qe5+ {[%clk 00:23:28]} {[%emt
00:02:54]} Kg6 {[%clk 00:38:23]} {[%emt 00:00:08]} 50. Qe4+ {[%clk 00:23:37]}
{[%emt 00:00:21]} Kg7 {[%clk 00:38:49]} {[%emt 00:00:04]} 51. Qxf3 {[%clk
00:23:59]} {[%emt 00:00:08]} Qxb6 {[%clk 00:39:14]} {[%emt 00:00:04]} 52. Qc3+
{[%clk 00:22:34]} {[%emt 00:01:55]} Kg6 {[%clk 00:39:15]} {[%emt 00:00:29]} 53.
Qc5 {[%clk 00:20:42]} {[%emt 00:02:22]} Qb8+ {[%clk 00:38:29]} {[%emt
00:01:17]} 54. Kh1 {[%clk 00:21:00]} {[%emt 00:00:11]} g4 {[%clk 00:38:39]}
{[%emt 00:00:21]} 55. b5 {[%clk 00:12:44]} {[%emt 00:08:46]} Qg3 {[%clk
00:38:18]} {[%emt 00:00:51]} 56. Qc6+ {[%clk 00:06:53]} {[%emt 00:06:21]} Kf7
{[%clk 00:37:49]} {[%emt 00:00:59]} 57. Qd5+ {[%clk 00:07:00]} {[%emt
00:00:23]} Kf6 {[%clk 00:36:19]} {[%emt 00:02:00]} 58. Qe4 {[%clk 00:06:59]}
{[%emt 00:00:30]} Qf2 {[%clk 00:35:25]} {[%emt 00:01:24]} 59. hxg4 {[%clk
00:05:47]} {[%emt 00:01:43]} hxg4 {[%clk 00:34:49]} {[%emt 00:01:06]} 60. Kh2
{[%clk 00:05:26]} {[%emt 00:00:52]} Kg5 {[%clk 00:32:43]} {[%emt 00:02:35]} 61.
Qe7+ {[%clk 00:04:00]} {[%emt 00:01:56]} Kh5 {[%clk 00:32:59]} {[%emt
00:00:15]} 62. Qe8+ {[%clk 00:03:37]} {[%emt 00:00:53]} Kh4 {[%clk 00:32:40]}
{[%emt 00:00:48]} 63. Qd8+ {[%clk 00:04:02]} {[%emt 00:00:04]} Kh5 {[%clk
00:33:06]} {[%emt 00:00:05]} 64. Qh8+ {[%clk 00:02:56]} {[%emt 00:01:36]} Kg5
{[%clk 00:33:31]} {[%emt 00:00:05]} 65. Qg7+ {[%clk 00:03:20]} {[%emt
00:00:04]} Kh5 {[%clk 00:33:54]} {[%emt 00:00:09]} 66. Qh7+ {[%clk 00:01:45]}
{[%emt 00:02:04]} Kg5 {[%clk 00:34:19]} {[%emt 00:00:05]} 67. Qe7+ {[%clk
00:02:10]} {[%emt 00:00:05]} Kh5 {[%clk 00:34:45]} {[%emt 00:00:04]} 68. Qh7+
{[%clk 00:00:57]} {[%emt 00:01:44]} Kg5 {[%clk 00:35:09]} {[%emt 00:00:05]} 69.
Qb1 {[%clk 00:00:59]} {[%emt 00:00:28]} g3+ {[%clk 00:32:28]} {[%emt 00:03:11]}
70. Kh1 {[%clk 00:01:01]} {[%emt 00:00:28]} Qf4 {[%clk 00:32:54]} {[%emt
00:00:04]} 71. Qd1 {[%clk 00:00:44]} {[%emt 00:00:47]} Qh4+ {[%clk 00:33:13]}
{[%emt 00:00:11]} 72. Kg1 {[%clk 00:01:13]} {[%emt 00:00:01]} Qh2+ {[%clk
00:33:37]} {[%emt 00:00:06]} 73. Kf1 {[%clk 00:01:43]} Qh1+ {[%clk 00:34:01]}
{[%emt 00:00:07]} 74. Ke2 {[%clk 00:02:11]} {[%emt 00:00:02]} Qxg2+ {[%clk
00:34:25]} {[%emt 00:00:06]} 75. Kd3 {[%clk 00:01:46]} {[%emt 00:00:55]} Qd5+
{[%clk 00:34:46]} {[%emt 00:00:09]} 76. Ke2 {[%clk 00:02:05]} {[%emt 00:00:12]}
Qxd1+ {[%clk 00:35:12]} {[%emt 00:00:04]} 0-1